fUSD/lending_fUSD_20240217
["ID","MTS","AMOUNT","RATE_DAILY","PERIOD"]
[314268651,1708131046124,-500.0,0.0005041,60]
[314268652,1708131046133,-611.9,0.0005041,60]
[314268653,1708131046142,-613.56,0.0005041,60]
[314268655,1708131046152,-500.0,0.0005041,60]
[314268656,1708131046161,-500.0,0.0005041,60]
[314268657,1708131046169,-500.0,0.0005041,60]
[314268658,1708131046178,-500.0,0.0005041,60]
[314268659,1708131046188,-500.0,0.0005041,60]
[314268660,1708131046197,-500.0,0.0005041,60]
[314268661,1708131046206,-500.0,0.0005041,60]
[314268662,1708131046215,-1066.03,0.0005041,60]
[314268663,1708131046224,-500.0,0.0005041,60]
[314268664,1708131046232,-500.0,0.0005041,60]
[314268665,1708131046241,-500.0,0.0005041,60]
[314268666,1708131046250,-843.26,0.0005041,60]
[314268667,1708131046260,-745.61,0.0005041,60]
[314268668,1708131046268,-1277.06,0.0005041,60]
[314268669,1708131046277,-500.0,0.0005041,60]
[314268670,1708131046286,-500.0,0.0005041,60]
[314268671,1708131046296,-500.0,0.0005041,60]
[314268672,1708131046305,-500.0,0.0005041,60]
[314268673,1708131046314,-840.59,0.0005041,60]
[314268674,1708131046323,-500.0,0.0005041,60]
[314268675,1708131046332,-500.0,0.0005041,60]
[314268676,1708131046341,-500.0,0.0005041,60]
[314268677,1708131046350,-3180.68,0.0005041,60]
[314268678,1708131046360,-8098.93,0.0005041,60]
[314268679,1708131046369,-500.0,0.0005041,60]
[314268680,1708131046378,-500.0,0.0005041,60]
[314268681,1708131046387,-500.0,0.0005041,60]
[314268682,1708131046397,-3674.72,0.0005041,60]
[314268683,1708131046410,-500.0,0.0005041,60]
[314268684,1708131046419,-500.0,0.0005041,60]
[314268685,1708131046428,-500.0,0.0005041,60]
[314268686,1708131046438,-500.0,0.0005041,60]
[314268687,1708131046448,-500.0,0.0005041,60]
[314268688,1708131046457,-662.41,0.0005041,60]
[314268689,1708131046466,-82088.0192203,0.0005043,11]
[314268690,1708131046474,-1394.02915863,0.00050498,14]
[314268691,1708131046485,-250.0,0.00050538,2]
[314268692,1708131046494,-500.0,0.0005056,14]
[314268693,1708131046503,-404.92133194,0.00050681,2]
[314268694,1708131046512,-500.0,0.00050684,60]
[314268695,1708131046521,-500.0,0.00050684,60]
[314268696,1708131046530,-500.0,0.00050684,60]
[314268697,1708131046539,-500.0,0.00050684,60]
[314268698,1708131046548,-500.0,0.00050684,2]
[314268699,1708131046557,-500.0,0.00050684,60]
[314268700,1708131046566,-677.91,0.00050684,120]
[314268701,1708131046575,-201.82242844,0.00050684,2]
[314268702,1708131046584,-500.0,0.00050684,60]
[314268703,1708131046594,-736.38,0.00050684,60]
[314268704,1708131046603,-500.0,0.00050684,60]
[314268705,1708131046612,-1342.10238,0.00050684,30]
[314268706,1708131046621,-500.0,0.00050684,60]
[314268707,1708131046630,-500.0,0.00050684,2]
[314268708,1708131046639,-500.0,0.00050684,60]
[314268709,1708131046648,-500.0,0.00050684,60]
[314268710,1708131046657,-500.0,0.00050684,60]
[314268711,1708131046666,-500.0,0.00050684,60]
[314268712,1708131046675,-500.0,0.00050684,2]
[314268713,1708131046683,-500.0,0.00050684,7]
[314268714,1708131046692,-500.0,0.00050684,60]
[314268715,1708131046701,-500.0,0.00050684,60]
[314268716,1708131046710,-2287.066667,0.00050684,30]
[314268717,1708131046719,-1950.56,0.00050684,60]
[314268718,1708131046728,-397.138087,0.00050684,30]
[314268719,1708131046737,-500.0,0.00050684,60]
[314268720,1708131046746,-500.0,0.00050684,60]
[314268721,1708131046757,-500.0,0.00050684,60]
[314268722,1708131046766,-500.0,0.00050684,60]
[314268723,1708131046775,-500.0,0.00050684,60]
[314268724,1708131046784,-1028.22,0.00050684,60]
[314268725,1708131046793,-500.0,0.00050684,60]
[314268726,1708131046802,-617.78,0.00050684,60]
[314268727,1708131046811,-792.42,0.00050684,14]
[314268728,1708131046820,-500.0,0.00050684,60]
[314268729,1708131046830,-2467.15,0.00050684,60]
[314268730,1708131046839,-404.53705251,0.00050684,60]
[314268731,1708131046848,-500.0,0.00050684,60]
[314268732,1708131046858,-258.60721682,0.00050684,60]
[314268733,1708131046867,-534.54,0.00050684,60]
[314268734,1708131046876,-584.02,0.00050684,60]
[314268735,1708131046885,-747.86,0.00050684,2]
[314268736,1708131046895,-500.0,0.00050684,60]
[314268737,1708131046904,-500.0,0.00050684,60]
[314268738,1708131046913,-500.0,0.00050684,60]
[314268739,1708131046922,-500.0,0.00050684,60]
[314268740,1708131046932,-500.0,0.00050684,60]
[314268741,1708131046941,-500.0,0.00050684,60]
[314268742,1708131046950,-500.0,0.00050684,60]
[314268743,1708131046959,-602.38,0.00050684,60]
[314268744,1708131046969,-500.0,0.00050684,60]
[314268745,1708131046978,-1714.77,0.00050684,60]
[314268746,1708131046988,-500.0,0.00050684,60]
[314268747,1708131046997,-500.0,0.00050684,60]
[314268748,1708131047006,-305.83416254,0.00050684,60]
[314268749,1708131047015,-500.0,0.00050684,60]
[314268750,1708131047024,-676.18,0.00050684,60]
[314268751,1708131047035,-500.0,0.00050684,60]
[314268752,1708131047044,-1450.49,0.00050684,60]
[314268753,1708131047054,-915.9,0.00050684,60]
[314268754,1708131047063,-500.0,0.00050684,60]
[314268755,1708131047072,-500.0,0.00050684,60]
[314268756,1708131047198,-500.0,0.00050684,60]
[314268757,1708131047207,-500.0,0.00050684,60]
[314268758,1708131047217,-802.55,0.00050684,60]
[314268759,1708131047226,-500.0,0.00050684,60]
[314268760,1708131047234,-862.82,0.00050684,60]
[314268761,1708131047243,-680.86,0.00050684,60]
[314268762,1708131047252,-500.0,0.00050684,60]
[314268763,1708131047261,-500.0,0.00050684,60]
[314268764,1708131047270,-500.0,0.00050684,60]
[314268765,1708131047279,-390.87112417,0.00050684,60]
[314268766,1708131047288,-500.0,0.00050684,60]
[314268767,1708131047297,-500.0,0.00050684,60]
[314268768,1708131047315,-500.0,0.00050684,60]
[314268769,1708131047325,-500.0,0.00050684,60]
[314268770,1708131047334,-1066.03,0.00050684,60]
[314268771,1708131047343,-500.0,0.00050684,60]
[314268772,1708131047352,-500.0,0.00050684,60]
[314268773,1708131047362,-500.0,0.00050684,60]
[314268774,1708131047372,-843.26,0.00050684,60]
[314268775,1708131047381,-745.61,0.00050684,60]
[314268776,1708131047391,-1277.06,0.00050684,60]
[314268777,1708131047400,-222.71,0.00050684,60]
[314268778,1708131047411,-500.0,0.00050684,60]
[314268779,1708131047421,-500.0,0.00050684,60]
[314268780,1708131047429,-500.0,0.00050684,60]
[314268781,1708131047439,-840.59,0.00050684,60]
[314268782,1708131047449,-500.0,0.00050684,60]
[314268783,1708131047458,-500.0,0.00050684,60]
[314268784,1708131047467,-500.0,0.00050684,60]
[314268785,1708131047476,-3180.68,0.00050684,60]
[314268786,1708131047485,-8098.93,0.00050684,60]
[314268787,1708131047495,-500.0,0.00050684,60]
[314268788,1708131047504,-500.0,0.00050684,60]
[314268789,1708131047513,-500.0,0.00050684,60]
[314268790,1708131047522,-3674.72,0.00050684,60]
[314268791,1708131047532,-1829.653333,0.00050684,30]
[314268792,1708131047541,-4993.644876,0.00050684,120]
[314268793,1708131047550,-500.0,0.00050684,60]
[314268794,1708131047559,-500.0,0.00050684,60]
[314268795,1708131047568,-500.0,0.00050684,60]
[314268796,1708131047577,-5559.933223,0.00050684,30]
[314268797,1708131047586,-500.0,0.00050684,60]
[314268798,1708131047595,-500.0,0.00050684,60]
[314268799,1708131047604,-662.41,0.00050684,60]
[314268800,1708131047613,-1000.0,0.000507,2]
[314268801,1708131047622,-500.0,0.00050809,14]
[314268802,1708131047631,-250.0,0.00050812,2]
[314268803,1708131047640,-215.3718118,0.0005089,2]
[314268804,1708131047649,-439.93903515,0.0005089,2]
[314268805,1708131047658,-729.48022721,0.0005089,2]
[314268806,1708131047667,-196.38166492,0.00050895,27]
[314268807,1708131047676,-202.79866518,0.00050895,27]
[314268808,1708131047685,-311.74,0.000509,2]
[314268809,1708131047694,-468.4522667,0.000509,2]
[314268810,1708131047703,-800.0,0.000509,30]
[314268811,1708131047712,-158.59938798,0.00050916,2]
[314268812,1708131047721,-157.78,0.00050958,60]
[314268813,1708131047730,-500.0,0.00050958,60]
[314268814,1708131047738,-500.0,0.00050958,60]
[314268815,1708131047747,-500.0,0.00050958,60]
[314268816,1708131047757,-500.0,0.00050958,2]
[314268817,1708131047767,-500.0,0.00050958,60]
[314268818,1708131047776,-677.91,0.00050958,120]
[314268819,1708131047786,-500.0,0.00050958,60]
[314268820,1708131047794,-736.38,0.00050958,60]
[314268821,1708131047803,-500.0,0.00050958,60]
[314268822,1708131047812,-500.0,0.00050958,2]
[314268823,1708131047821,-308.37,0.00050958,60]
[314268824,1708131047830,-500.0,0.00050958,60]
[314268825,1708131047839,-500.0,0.00050958,60]
[314268826,1708131047849,-500.0,0.00050958,60]
[314268827,1708131047858,-500.0,0.00050958,2]
[314268828,1708131047867,-151.42673394,0.00050958,7]
[314268829,1708131047876,-500.0,0.00050958,60]
[314268830,1708131047886,-500.0,0.00050958,60]
[314268831,1708131047895,-1950.56,0.00050958,60]
[314268832,1708131047904,-500.0,0.00050958,60]
[314268833,1708131047914,-500.0,0.00050958,60]
[314268834,1708131047923,-429.88,0.00050958,60]
[314268835,1708131047932,-500.0,0.00050958,60]
[314268836,1708131047941,-500.0,0.00050958,60]
[314268837,1708131047951,-1028.22,0.00050958,60]
[314268838,1708131047960,-500.0,0.00050958,60]
[314268839,1708131047969,-617.78,0.00050958,60]
[314268840,1708131047979,-792.42,0.00050958,14]
[314268841,1708131047988,-500.0,0.00050958,60]
[314268842,1708131047998,-2467.15,0.00050958,60]
[314268843,1708131048008,-500.0,0.00050958,60]
[314268844,1708131048017,-534.54,0.00050958,60]
[314268845,1708131048026,-747.86,0.00050958,2]
[314268846,1708131048035,-500.0,0.00050958,60]
[314268847,1708131048045,-500.0,0.00050958,60]
[314268848,1708131048054,-500.0,0.00050958,60]
[314268849,1708131048064,-500.0,0.00050958,60]
[314268850,1708131048073,-500.0,0.00050958,60]
[314268851,1708131048083,-420.62,0.00050958,60]
[314268852,1708131048092,-500.0,0.00050958,60]
[314268853,1708131048101,-602.38,0.00050958,60]
[314268854,1708131048110,-500.0,0.00050958,60]
[314268855,1708131048120,-1714.77,0.00050958,60]
[314268856,1708131048129,-500.0,0.00050958,60]
[314268857,1708131048138,-500.0,0.00050958,60]
[314268858,1708131048147,-500.0,0.00050958,60]
[314268859,1708131048157,-676.18,0.00050958,60]
[314268860,1708131048166,-500.0,0.00050958,60]
[314268861,1708131048175,-1450.49,0.00050958,60]
[314268862,1708131048184,-915.9,0.00050958,60]
[314268863,1708131048193,-500.0,0.00050958,60]
[314268864,1708131048202,-500.0,0.00050958,60]
[314268865,1708131048211,-500.0,0.00050958,60]
[314268866,1708131048220,-500.0,0.00050958,60]
[314268867,1708131048230,-802.55,0.00050958,60]
[314268868,1708131048239,-289.23273322,0.00050958,60]
[314268869,1708131048248,-862.82,0.00050958,60]
[314268870,1708131048257,-680.86,0.00050958,60]
[314268871,1708131048267,-500.0,0.00050958,60]
[314268872,1708131048276,-500.0,0.00050958,60]
[314268873,1708131048285,-500.0,0.00050958,60]
[314268874,1708131048294,-500.0,0.00050958,60]
[314268875,1708131048303,-500.0,0.00050958,60]
[314268876,1708131048321,-500.0,0.00050958,60]
[314268877,1708131048332,-372.07587606,0.00050958,60]
[314268878,1708131048341,-1066.03,0.00050958,60]
[314268879,1708131048350,-500.0,0.00050958,60]
[314268880,1708131048359,-500.0,0.00050958,60]
[314268881,1708131048368,-500.0,0.00050958,60]
[314268882,1708131048377,-843.26,0.00050958,60]
[314268883,1708131048387,-745.61,0.00050958,60]
[314268884,1708131048396,-1277.06,0.00050958,60]
[314268885,1708131048409,-500.0,0.00050958,60]
[314268886,1708131048418,-500.0,0.00050958,60]
[314268887,1708131048428,-500.0,0.00050958,60]
[314268888,1708131048438,-840.59,0.00050958,60]
[314268889,1708131048447,-500.0,0.00050958,60]
[314268890,1708131048456,-500.0,0.00050958,60]
[314268891,1708131048465,-500.0,0.00050958,60]
[314268892,1708131048474,-3180.68,0.00050958,60]
[314268893,1708131048485,-8098.93,0.00050958,60]
[314268894,1708131048494,-500.0,0.00050958,60]
[314268895,1708131048503,-500.0,0.00050958,60]
[314268896,1708131048512,-500.0,0.00050958,60]
[314268897,1708131048521,-3674.72,0.00050958,60]
[314268898,1708131048530,-500.0,0.00050958,60]
[314268899,1708131048539,-500.0,0.00050958,60]
[314268900,1708131048549,-500.0,0.00050958,60]
[314268901,1708131048558,-500.0,0.00050958,60]
[314268902,1708131048567,-500.0,0.00050958,60]
[314268903,1708131048576,-662.41,0.00050958,60]
[314268904,1708131048585,-164176.038441,0.0005099,12]
[314268905,1708131048594,-161.15011055,0.0005099,2]
[314268906,1708131048603,-189999.999999,0.00051,30]
[314268907,1708131048613,-10382.30866752,0.00051,2]
[314268908,1708131048622,-500.0,0.00051059,14]
[314268909,1708131048631,-1935.7361904,0.00051182,28]
[314268910,1708131048640,-1000.0,0.00051201,120]
[314268911,1708131048649,-500.0,0.00051232,60]
[314268912,1708131048659,-500.0,0.00051232,60]
[314268913,1708131048668,-500.0,0.00051232,60]
[314268914,1708131048678,-500.0,0.00051232,2]
[314268915,1708131048687,-500.0,0.00051232,60]
[314268916,1708131048696,-677.91,0.00051232,120]
[314268917,1708131048705,-500.0,0.00051232,60]
[314268918,1708131048714,-736.38,0.00051232,60]
[314268919,1708131048723,-500.0,0.00051232,60]
[314268920,1708131048732,-500.0,0.00051232,2]
[314268921,1708131048741,-500.0,0.00051232,60]
[314268922,1708131048750,-500.0,0.00051232,60]
[314268923,1708131048760,-500.0,0.00051232,60]
[314268924,1708131048769,-500.0,0.00051232,2]
[314268925,1708131048779,-500.0,0.00051232,60]
[314268926,1708131048788,-500.0,0.00051232,60]
[314268927,1708131048798,-1950.56,0.00051232,60]
[314268928,1708131048808,-500.0,0.00051232,60]
[314268929,1708131048817,-500.0,0.00051232,60]
[314268930,1708131048827,-500.0,0.00051232,60]
[314268931,1708131048837,-500.0,0.00051232,60]
[314268932,1708131048847,-1028.22,0.00051232,60]
[314268933,1708131048857,-500.0,0.00051232,60]
[314268934,1708131048867,-617.78,0.00051232,60]
[314268935,1708131048877,-792.42,0.00051232,14]
[314268936,1708131048886,-500.0,0.00051232,60]
[314268937,1708131048896,-2467.15,0.00051232,60]
[314268938,1708131048906,-500.0,0.00051232,60]
[314268939,1708131048915,-534.54,0.00051232,60]
[314268940,1708131048924,-747.86,0.00051232,2]
[314268941,1708131048934,-500.0,0.00051232,60]
[314268942,1708131048943,-464.64354575,0.00051232,60]
[314268943,1708131048952,-500.0,0.00051232,60]
[314268944,1708131048962,-500.0,0.00051232,60]
[314268945,1708131048971,-500.0,0.00051232,60]
[314268946,1708131048981,-500.0,0.00051232,60]
[314268947,1708131048990,-602.38,0.00051232,60]
[314268948,1708131049000,-500.0,0.00051232,60]
[314268949,1708131049009,-1714.77,0.00051232,60]
[314268950,1708131049019,-500.0,0.00051232,60]
[314268951,1708131049028,-500.0,0.00051232,60]
[314268952,1708131049038,-500.0,0.00051232,60]
[314268953,1708131049047,-676.18,0.00051232,60]
[314268954,1708131049056,-500.0,0.00051232,60]
[314268955,1708131049066,-1450.49,0.00051232,60]
[314268956,1708131049076,-915.9,0.00051232,60]
[314268957,1708131049085,-500.0,0.00051232,60]
[314268958,1708131049094,-500.0,0.00051232,60]
[314268959,1708131049104,-500.0,0.00051232,60]
[314268960,1708131049114,-500.0,0.00051232,60]
[314268961,1708131049123,-802.55,0.00051232,60]
[314268962,1708131049133,-862.82,0.00051232,60]
[314268963,1708131049142,-680.86,0.00051232,60]
[314268964,1708131049151,-500.0,0.00051232,60]
[314268965,1708131049161,-500.0,0.00051232,60]
[314268966,1708131049171,-500.0,0.00051232,60]
[314268967,1708131049181,-500.0,0.00051232,60]
[314268968,1708131049190,-500.0,0.00051232,60]
[314268969,1708131049199,-521.9420013,0.00051232,60]
[314268970,1708131049209,-1066.03,0.00051232,60]
[314268971,1708131049218,-500.0,0.00051232,60]
[314268972,1708131049228,-500.0,0.00051232,60]
[314268973,1708131049237,-500.0,0.00051232,60]
[314268974,1708131049247,-843.26,0.00051232,60]
[314268975,1708131049257,-745.61,0.00051232,60]
[314268976,1708131049265,-1277.06,0.00051232,60]
[314268977,1708131049275,-500.0,0.00051232,60]
[314268978,1708131049285,-500.0,0.00051232,60]
[314268979,1708131049296,-500.0,0.00051232,60]
[314268980,1708131049306,-840.59,0.00051232,60]
[314268981,1708131049316,-500.0,0.00051232,60]
[314268982,1708131049324,-500.0,0.00051232,60]
[314268983,1708131049334,-500.0,0.00051232,60]
[314268984,1708131049344,-3180.68,0.00051232,60]
[314268985,1708131049354,-8098.93,0.00051232,60]
[314268986,1708131049363,-500.0,0.00051232,60]
[314268987,1708131049373,-500.0,0.00051232,60]
[314268988,1708131049382,-500.0,0.00051232,60]
[314268989,1708131049391,-3674.72,0.00051232,60]
[314268990,1708131049406,-500.0,0.00051232,60]
[314268991,1708131049416,-500.0,0.00051232,60]
[314268992,1708131049425,-500.0,0.00051232,60]
[314268993,1708131049435,-500.0,0.00051232,60]
[314268994,1708131049445,-500.0,0.00051232,60]
[314268995,1708131049454,-662.41,0.00051232,60]
[314268996,1708131049463,-500.0,0.00051308,14]
[314268997,1708131049473,-1394.02915863,0.00051336,14]
[314268998,1708131049484,-326.23455361,0.00051427,2]
[314268999,1708131049495,-82088.0192203,0.00051496,12]
[314269000,1708131049504,-5000.0,0.000515,60]
[314269001,1708131049514,-3000.0,0.000515,45]
[314269002,1708131049523,-5000.0,0.000515,60]
[314269003,1708131049532,-3000.0,0.000515,45]
[314269004,1708131049542,-3000.0,0.000515,45]
[314269005,1708131049552,-5000.0,0.000515,60]
[314269006,1708131049561,-3000.0,0.000515,45]
[314269007,1708131049571,-3000.0,0.000515,45]
[314269008,1708131049581,-5000.0,0.000515,60]
[314269009,1708131049590,-3000.0,0.000515,45]
[314269010,1708131049600,-5000.0,0.000515,60]
[314269011,1708131049609,-544.38,0.00051506,60]
[314269012,1708131049619,-500.0,0.00051506,60]
[314269013,1708131049628,-340.84,0.00051506,60]
[314269014,1708131049637,-391.02,0.00051506,2]
[314269015,1708131049647,-500.0,0.00051506,60]
[314269016,1708131049657,-677.91,0.00051506,120]
[314269017,1708131049666,-500.0,0.00051506,60]
[314269018,1708131049676,-736.38,0.00051506,60]
[314269019,1708131049687,-500.0,0.00051506,60]
[314269020,1708131049696,-473.91,0.00051506,2]
[314269021,1708131049705,-500.0,0.00051506,60]
[314269022,1708131049715,-500.0,0.00051506,60]
[314269023,1708131049724,-500.0,0.00051506,2]
[314269024,1708131049733,-500.0,0.00051506,60]
[314269025,1708131049742,-500.0,0.00051506,60]
[314269026,1708131049752,-1950.56,0.00051506,60]
[314269027,1708131049762,-500.0,0.00051506,60]
[314269028,1708131049772,-500.0,0.00051506,60]
[314269029,1708131049782,-613.14087466,0.00051506,60]
[314269030,1708131049792,-500.0,0.00051506,60]
[314269031,1708131049802,-1028.22,0.00051506,60]
[314269032,1708131049811,-500.0,0.00051506,60]
[314269033,1708131049821,-792.42,0.00051506,14]
[314269034,1708131049832,-617.78,0.00051506,60]
[314269035,1708131049843,-500.0,0.00051506,60]
[314269036,1708131049853,-2467.15,0.00051506,60]
[314269037,1708131049864,-500.0,0.00051506,60]
[314269038,1708131049874,-534.54,0.00051506,60]
[314269039,1708131049883,-747.86,0.00051506,2]
[314269040,1708131049893,-500.0,0.00051506,60]
[314269041,1708131049903,-500.0,0.00051506,60]
[314269042,1708131049912,-500.0,0.00051506,60]
[314269043,1708131049922,-343.1,0.00051506,60]
[314269044,1708131049932,-500.0,0.00051506,60]
[314269045,1708131049941,-500.0,0.00051506,60]
[314269046,1708131049951,-602.38,0.00051506,60]
[314269047,1708131049960,-1714.77,0.00051506,60]
[314269048,1708131049970,-500.0,0.00051506,60]
[314269049,1708131049980,-500.0,0.00051506,60]
[314269050,1708131049989,-500.0,0.00051506,60]
[314269051,1708131050000,-676.18,0.00051506,60]
[314269052,1708131050011,-500.0,0.00051506,60]
[314269053,1708131050022,-1450.49,0.00051506,60]
[314269054,1708131050033,-915.9,0.00051506,60]
[314269055,1708131050045,-500.0,0.00051506,60]
[314269056,1708131050056,-500.0,0.00051506,60]
[314269057,1708131050066,-500.0,0.00051506,60]
[314269058,1708131050077,-500.0,0.00051506,60]
[314269059,1708131050088,-802.55,0.00051506,60]
[314269060,1708131050098,-862.82,0.00051506,60]
[314269061,1708131050109,-680.86,0.00051506,60]
[314269062,1708131050120,-500.0,0.00051506,60]
[314269063,1708131050131,-500.0,0.00051506,60]
[314269064,1708131050141,-500.0,0.00051506,60]
[314269065,1708131050152,-500.0,0.00051506,60]
[314269066,1708131050162,-500.0,0.00051506,60]
[314269067,1708131050172,-1066.03,0.00051506,60]
[314269068,1708131050182,-500.0,0.00051506,60]
[314269069,1708131050192,-565.15,0.00051506,60]
[314269070,1708131050202,-500.0,0.00051506,60]
[314269071,1708131050213,-843.26,0.00051506,60]
[314269072,1708131050223,-745.61,0.00051506,60]
[314269073,1708131050233,-1277.06,0.00051506,60]
[314269074,1708131050242,-500.0,0.00051506,60]
[314269075,1708131050252,-500.0,0.00051506,60]
[314269076,1708131050262,-500.0,0.00051506,60]
[314269077,1708131050273,-840.59,0.00051506,60]
[314269078,1708131050283,-500.0,0.00051506,60]
[314269079,1708131050294,-500.0,0.00051506,60]
[314269080,1708131050304,-500.0,0.00051506,60]
[314269081,1708131050313,-3180.68,0.00051506,60]
[314269082,1708131050323,-8098.93,0.00051506,60]
[314269083,1708131050333,-500.0,0.00051506,60]
[314269084,1708131050343,-500.0,0.00051506,60]
[314269085,1708131050354,-500.0,0.00051506,60]
[314269086,1708131050364,-3674.72,0.00051506,60]
[314269087,1708131050374,-457.413333,0.00051506,30]
[314269088,1708131050383,-500.0,0.00051506,60]
[314269089,1708131050548,-500.0,0.00051506,60]
[314269090,1708131050558,-500.0,0.00051506,60]
[314269091,1708131050568,-500.0,0.00051506,60]
[314269092,1708131050577,-500.0,0.00051506,60]
[314269093,1708131050586,-662.41,0.00051506,60]
[314269094,1708131050595,-151.0,0.00051514,2]
[314269095,1708131050605,-500.0,0.00051557,14]
[314269096,1708131050616,-438.51,0.00051581,2]
[314269097,1708131050625,-1000.0,0.00051779,2]
[314269098,1708131050635,-500.0,0.0005178,60]
[314269099,1708131050645,-500.0,0.0005178,60]
[314269100,1708131050654,-677.91,0.0005178,120]
[314269101,1708131050663,-500.0,0.0005178,60]
[314269102,1708131050674,-736.38,0.0005178,60]
[314269103,1708131050683,-500.0,0.0005178,60]
[314269104,1708131050692,-500.0,0.0005178,60]
[314269105,1708131050701,-500.0,0.0005178,60]
[314269106,1708131050710,-500.0,0.0005178,2]
[314269107,1708131050720,-500.0,0.0005178,60]
[314269108,1708131050729,-500.0,0.0005178,60]
[314269109,1708131050738,-1950.56,0.0005178,60]
[314269110,1708131050748,-500.0,0.0005178,60]
[314269111,1708131050758,-500.0,0.0005178,60]
[314269112,1708131050769,-500.0,0.0005178,60]
[314269113,1708131050778,-1028.22,0.0005178,60]
[314269114,1708131050788,-269.31,0.0005178,60]
[314269115,1708131050798,-792.42,0.0005178,14]
[314269116,1708131050807,-617.78,0.0005178,60]
[314269117,1708131050817,-500.0,0.0005178,60]
[314269118,1708131050827,-2467.15,0.0005178,60]
[314269119,1708131050837,-500.0,0.0005178,60]
[314269120,1708131050847,-534.54,0.0005178,60]
[314269121,1708131050857,-747.86,0.0005178,2]
[314269122,1708131050867,-500.0,0.0005178,60]
[314269123,1708131050877,-500.0,0.0005178,60]
[314269124,1708131050887,-500.0,0.0005178,60]
[314269125,1708131050897,-500.0,0.0005178,60]
[314269126,1708131050907,-602.38,0.0005178,60]
[314269127,1708131050916,-500.0,0.0005178,60]
[314269128,1708131050925,-1714.77,0.0005178,60]
[314269129,1708131050934,-500.0,0.0005178,60]
[314269130,1708131050944,-500.0,0.0005178,60]
[314269131,1708131050954,-552.08,0.0005178,60]
[314269132,1708131050964,-676.18,0.0005178,60]
[314269133,1708131050973,-500.0,0.0005178,60]
[314269134,1708131050983,-1450.49,0.0005178,60]
[314269135,1708131050993,-915.9,0.0005178,60]
[314269136,1708131051002,-500.0,0.0005178,60]
[314269137,1708131051012,-500.0,0.0005178,60]
[314269138,1708131051022,-347.92,0.0005178,60]
[314269139,1708131051031,-802.55,0.0005178,60]
[314269140,1708131051041,-862.82,0.0005178,60]
[314269141,1708131051051,-680.86,0.0005178,60]
[314269142,1708131051060,-500.0,0.0005178,60]
[314269143,1708131051070,-500.0,0.0005178,60]
[314269144,1708131051080,-500.0,0.0005178,60]
[314269145,1708131051090,-500.0,0.0005178,60]
[314269146,1708131051099,-500.0,0.0005178,60]
[314269147,1708131051109,-1066.03,0.0005178,60]
[314269148,1708131051119,-500.0,0.0005178,60]
[314269149,1708131051129,-500.0,0.0005178,60]
[314269150,1708131051139,-843.26,0.0005178,60]
[314269151,1708131051149,-745.61,0.0005178,60]